lending/lending_fUSD_20250408
["ID","MTS","AMOUNT","RATE_DAILY","PERIOD"]
[357546475,1744135861038,-1161.33,0.00052876,120]
[357546476,1744135861047,-639.27,0.00052876,120]
[357546477,1744135861057,-1012.34,0.00052876,120]
[357546478,1744135861066,-521.46203218,0.00052876,120]
[357546479,1744135861075,-500.0,0.00052876,120]
[357546480,1744135861085,-500.0,0.00052876,120]
[357546481,1744135861095,-1476.66,0.00052876,120]
[357546482,1744135861104,-500.0,0.00052876,120]
[357546483,1744135861113,-500.0,0.00052876,120]
[357546484,1744135861123,-518.9,0.00052876,120]
[357546485,1744135861132,-500.0,0.00052876,120]
[357546486,1744135861141,-714.16,0.00052876,120]
[357546487,1744135861151,-500.0,0.00052876,120]
[357546488,1744135861160,-500.0,0.00052876,120]
[357546489,1744135861170,-802.54,0.00052876,120]
[357546490,1744135861179,-500.0,0.00052876,120]
[357546491,1744135861188,-500.0,0.00052876,120]
[357546492,1744135861197,-521.99,0.00052876,120]
[357546493,1744135861207,-500.0,0.00052876,120]
[357546494,1744135861216,-707.18,0.00052876,120]
[357546495,1744135861226,-500.0,0.00052876,120]
[357546496,1744135861235,-599.6,0.00052876,120]
[357546497,1744135861244,-500.0,0.00052876,120]
[357546498,1744135861254,-500.0,0.00052876,120]
[357546499,1744135861265,-704.21,0.00052876,120]
[357546500,1744135861274,-561.74664778,0.00052876,120]
[357546501,1744135861284,-173.71239672,0.00052876,120]
[357546502,1744135861293,-500.0,0.00052876,120]
[357546503,1744135861302,-500.0,0.00052876,120]
[357546504,1744135861311,-500.0,0.00052876,120]
[357546505,1744135861320,-500.0,0.00052876,120]
[357546506,1744135861330,-641.96,0.00052876,120]
[357546507,1744135861339,-938.36,0.00052876,120]
[357546508,1744135861349,-605.50114288,0.00052876,120]
[357546509,1744135861359,-836.32,0.00052876,120]
[357546510,1744135861368,-500.0,0.00052876,120]
[357546511,1744135861377,-500.0,0.00052876,120]
[357546512,1744135861386,-500.0,0.00052876,120]
[357546513,1744135861395,-500.0,0.00052876,120]
[357546514,1744135861404,-500.0,0.00052876,120]
[357546515,1744135861413,-500.0,0.00052876,120]
[357546516,1744135861422,-528.9079915,0.00052876,120]
[357546517,1744135861431,-500.0,0.00052876,120]
[357546518,1744135861441,-1001.73,0.00052876,120]
[357546519,1744135861450,-1758.82,0.00052876,120]
[357546520,1744135861459,-500.0,0.00052876,120]
[357546521,1744135861469,-888.6,0.00052876,120]
[357546522,1744135861479,-500.0,0.00052876,120]
[357546523,1744135861488,-1712.57,0.00052876,120]
[357546524,1744135861498,-503.08421892,0.00052876,120]
[357546525,1744135861509,-357.77180079,0.00052876,120]
[357546526,1744135861518,-500.0,0.00052876,120]
[357546527,1744135861527,-506.60337811,0.00052876,120]
[357546528,1744135861537,-506.1503726,0.00052876,120]
[357546529,1744135861546,-669.22,0.00052876,120]
[357546530,1744135861555,-597.59,0.00052876,120]
[357546531,1744135861565,-500.0,0.00052876,120]
[357546532,1744135861575,-500.0,0.00052876,120]
[357546533,1744135861584,-500.0,0.00052876,120]
[357546534,1744135861593,-808.98,0.00052876,120]
[357546535,1744135861603,-599.3,0.00052876,120]
[357546536,1744135861613,-500.0,0.00052876,120]
[357546537,1744135861625,-500.0,0.00052876,120]
[357546538,1744135861634,-878.06,0.00052876,120]
[357546539,1744135861643,-500.0,0.00052876,120]
[357546540,1744135861654,-500.0,0.00052876,120]
[357546541,1744135861663,-539.63,0.00052876,120]
[357546542,1744135861673,-500.0,0.00052876,120]
[357546543,1744135861682,-503.50164433,0.00052876,120]
[357546544,1744135861692,-500.0,0.00052876,120]
[357546545,1744135861701,-500.0,0.00052876,120]
[357546546,1744135861711,-500.0,0.00052876,120]
[357546547,1744135861720,-500.0,0.00052876,120]
[357546548,1744135861729,-500.0,0.00052876,120]
[357546549,1744135861739,-500.0,0.00052876,120]
[357546550,1744135861748,-500.0,0.00052876,120]
[357546551,1744135861758,-990.1,0.00052876,120]
[357546552,1744135861768,-550.93,0.00052876,120]
[357546553,1744135861777,-500.0,0.00052876,120]
[357546554,1744135861787,-503.70228706,0.00052876,120]
[357546555,1744135861796,-1032.36,0.00052876,120]
[357546556,1744135861805,-1056.72,0.00052876,120]
[357546557,1744135861814,-1303.1,0.00052876,120]
[357546558,1744135861824,-500.0,0.00052876,120]
[357546559,1744135861833,-545.23,0.00052876,120]
[357546560,1744135861842,-500.0,0.00052876,120]
[357546561,1744135861851,-500.0,0.00052876,120]
[357546562,1744135861860,-500.0,0.00052876,120]
[357546563,1744135861869,-951.16,0.00052876,120]
[357546564,1744135861879,-510.74857099,0.00052876,120]
[357546565,1744135861889,-500.0,0.00052876,120]
[357546566,1744135861899,-947.72,0.00052876,120]
[357546567,1744135861908,-508.08539277,0.00052876,120]
[357546568,1744135861917,-808.53,0.00052876,120]
[357546569,1744135861927,-845.46,0.00052876,120]
[357546570,1744135861936,-500.0,0.00052876,120]
[357546571,1744135861945,-500.0,0.00052876,120]
[357546572,1744135861955,-507.67451312,0.00052876,120]
[357546573,1744135861964,-512.02117877,0.00052876,120]
[357546574,1744135861973,-500.0,0.00052876,120]
[357546575,1744135861982,-500.0,0.00052876,120]
[357546576,1744135861991,-508.9183814,0.00052876,120]
[357546577,1744135862000,-833.03,0.00052876,120]
[357546578,1744135862012,-515.04713454,0.00052876,120]
[357546579,1744135862021,-511.29642185,0.00052876,120]
[357546580,1744135862030,-2431.15,0.00052876,120]
[357546581,1744135862039,-500.0,0.00052876,120]
[357546582,1744135862050,-500.0,0.00052876,120]
[357546583,1744135862059,-500.0,0.00052876,120]
[357546584,1744135862068,-1568.64,0.00052876,120]
[357546585,1744135862078,-512.43164542,0.00052876,120]
[357546586,1744135862087,-201.78783051,0.00052876,120]
[357546587,1744135862096,-975.29,0.00052876,120]
[357546588,1744135862105,-806.29,0.00052876,120]
[357546589,1744135862114,-500.0,0.00052876,120]
[357546590,1744135862123,-500.0,0.00052876,120]
[357546591,1744135862133,-200.44926034,0.00052876,120]
[357546592,1744135862143,-500.0,0.00052876,120]
[357546593,1744135862151,-500.0,0.00052876,120]
[357546594,1744135862161,-500.0,0.00052876,120]
[357546595,1744135862171,-554.9772295,0.00052876,120]
[357546596,1744135862181,-500.0,0.00052876,120]
[357546597,1744135862190,-929.27,0.00052876,120]
[357546598,1744135862199,-1263.92,0.00052876,120]
[357546599,1744135862208,-151.0,0.00052876,120]
[357546600,1744135862217,-151.0,0.00052876,120]
[357546601,1744135862227,-544.33552806,0.00052876,120]
[357546602,1744135862236,-6744.61,0.00052876,2]
[357546603,1744135862245,-570.11503929,0.00052876,120]
[357546604,1744135862255,-1745.31,0.00052876,120]
[357546605,1744135862271,-500.0,0.00052876,120]
[357546606,1744135862280,-784.78,0.00052876,120]
[357546607,1744135862290,-844.34,0.00052876,120]
[357546608,1744135862300,-1297.19,0.00052876,120]
[357546609,1744135862310,-500.0,0.00052876,120]
[357546610,1744135862321,-671.69,0.00052876,120]
[357546611,1744135862331,-500.0,0.00052876,120]
[357546612,1744135862341,-736.0,0.00052876,120]
[357546613,1744135862351,-568.5304342,0.00052876,120]
[357546614,1744135862362,-500.0,0.00052876,120]
[357546615,1744135862373,-500.0,0.00052876,120]
[357546616,1744135862383,-500.0,0.00052876,120]
[357546617,1744135862393,-500.0,0.00052876,120]
[357546618,1744135862403,-596.17,0.00052876,120]
[357546619,1744135862413,-500.0,0.00052876,120]
[357546620,1744135862423,-1049.21,0.00052876,120]
[357546621,1744135862432,-878.89,0.00052876,120]
[357546622,1744135862442,-530.24794474,0.00052876,120]
[357546623,1744135862451,-500.0,0.00052876,120]
[357546624,1744135862463,-522.57243319,0.00052876,120]
[357546625,1744135862472,-520.04,0.00052876,120]
[357546626,1744135862482,-581.28,0.00052876,120]
[357546627,1744135862492,-1004.09,0.00052876,120]
[357546628,1744135862501,-500.0,0.00052876,120]
[357546629,1744135862515,-500.0,0.00052876,120]
[357546630,1744135862525,-510.93497735,0.00052876,120]
[357546631,1744135862535,-500.0,0.00052876,120]
[357546632,1744135862545,-1139.43,0.00052876,120]
[357546633,1744135862556,-769.0,0.00052876,120]
[357546634,1744135862566,-500.0,0.00052876,120]
[357546635,1744135862576,-500.0,0.00052876,120]
[357546636,1744135862585,-500.0,0.00052876,120]
[357546637,1744135862595,-500.0,0.00052876,120]
[357546638,1744135862606,-691.29,0.00052876,120]
[357546639,1744135862618,-2188.68,0.00052876,120]
[357546640,1744135862628,-500.0,0.00052876,120]
[357546641,1744135862638,-500.0,0.00052876,120]
[357546642,1744135862648,-980.44,0.00052876,120]
[357546643,1744135862658,-547.15,0.00052876,120]
[357546644,1744135862668,-591.63,0.00052876,120]
[357546645,1744135862678,-500.0,0.00052876,120]
[357546646,1744135862689,-500.0,0.00052876,120]
[357546647,1744135862700,-707.17,0.00052876,120]
[357546648,1744135862710,-1356.13,0.00052876,120]
[357546649,1744135862719,-621.25,0.00052876,120]
[357546650,1744135862728,-500.0,0.00052876,120]
[357546651,1744135862738,-500.0,0.00052876,120]
[357546652,1744135862747,-500.0,0.00052876,120]
[357546653,1744135862757,-500.0,0.00052876,120]
[357546654,1744135862773,-1061.81,0.00052876,120]
[357546655,1744135862782,-915.65,0.00052876,120]
[357546656,1744135862791,-671.05,0.00052876,120]
[357546657,1744135862800,-991.48,0.00052876,120]
[357546658,1744135862810,-500.0,0.00052876,120]
[357546659,1744135862820,-537.70924009,0.00052876,120]
[357546660,1744135862829,-500.0,0.00052876,120]
[357546661,1744135862838,-581.95221285,0.00052876,120]
[357546662,1744135862847,-771.41,0.00052876,120]
[357546663,1744135862856,-735.03,0.00052876,120]
[357546664,1744135862866,-500.0,0.00052876,120]
[357546665,1744135862875,-500.0,0.00052876,120]
[357546666,1744135862885,-500.0,0.00052876,120]
[357546667,1744135862894,-1539.5,0.00052876,120]
[357546668,1744135862904,-500.0,0.00052876,120]
[357546669,1744135862913,-793.73,0.00052876,120]
[357546670,1744135862923,-2030.76,0.00052876,120]
[357546671,1744135862933,-500.0,0.00052876,120]
[357546672,1744135862943,-645.49,0.00052876,120]
[357546673,1744135862953,-532.7937297,0.00052876,120]
[357546674,1744135862962,-500.0,0.00052876,120]
[357546675,1744135862972,-543.59,0.00052876,120]
[357546676,1744135862981,-500.0,0.00052876,120]
[357546677,1744135862990,-1107.48,0.00052876,120]
[357546678,1744135862999,-500.0,0.00052876,120]
[357546679,1744135863013,-500.0,0.00052876,120]
[357546680,1744135863022,-500.0,0.00052876,120]
[357546681,1744135863032,-1122.05,0.00052876,120]
[357546682,1744135863041,-500.0,0.00052876,120]
[357546683,1744135863050,-500.0,0.00052876,8]
[357546684,1744135863060,-500.0,0.00052876,120]
[357546685,1744135863070,-1784.68,0.00052876,120]
[357546686,1744135863079,-918.42,0.00052876,120]
[357546687,1744135863089,-500.0,0.00052876,120]
[357546688,1744135863099,-665.51,0.00052876,120]
[357546689,1744135863109,-500.0,0.00052876,120]
[357546690,1744135863119,-578.6,0.00052876,120]
[357546691,1744135863128,-841.6,0.00052876,120]
[357546692,1744135863137,-1052.26,0.00052876,120]
[357546693,1744135863147,-500.0,0.00052876,120]
[357546694,1744135863157,-528.16,0.00052876,120]
[357546695,1744135863167,-768.18,0.00052876,120]
[357546696,1744135863176,-1672.07,0.00052876,118]
[357546697,1744135863186,-500.0,0.00052876,120]
[357546698,1744135863195,-1296.01,0.00052876,120]
[357546699,1744135863205,-500.0,0.00052876,120]
[357546700,1744135863214,-603.890118,0.00052876,120]
[357546701,1744135863224,-1146.51,0.00052876,120]
[357546702,1744135863233,-603.890118,0.00052876,120]
[357546703,1744135863243,-500.0,0.00052876,120]
[357546704,1744135863252,-500.0,0.00052876,120]
[357546705,1744135863266,-500.0,0.00052876,120]
[357546706,1744135863275,-1000.0,0.00052876,120]
[357546707,1744135863284,-201.41765688,0.00052876,120]
[357546708,1744135863293,-151.0,0.00052876,120]
[357546709,1744135863303,-500.0,0.00052876,120]
[357546710,1744135863312,-151.0,0.00052876,120]
[357546711,1744135863322,-603.890118,0.00052876,120]
[357546712,1744135863331,-603.890114,0.00052876,120]
[357546713,1744135863341,-500.0,0.00052876,120]
[357546714,1744135863351,-500.0,0.00052876,120]
[357546715,1744135863361,-803.86,0.00052876,120]
[357546716,1744135863371,-2828.98,0.00052876,120]
[357546717,1744135863380,-500.0,0.00052876,120]
[357546718,1744135863390,-825.98,0.00052876,120]
[357546719,1744135863400,-513.55,0.00052876,120]
[357546720,1744135863409,-500.0,0.00052876,120]
[357546721,1744135863419,-1752.77,0.00052876,120]
[357546722,1744135863428,-500.0,0.00052876,120]
[357546723,1744135863438,-1469.03,0.00052876,120]
[357546724,1744135863448,-674.74,0.00052876,120]
[357546725,1744135863458,-734.29,0.00052876,120]
[357546726,1744135863468,-895.79,0.00052876,120]
[357546727,1744135863477,-500.0,0.00052876,120]
[357546728,1744135863488,-931.13,0.00052876,120]
[357546729,1744135863497,-500.0,0.00052876,120]
[357546730,1744135863507,-548.95,0.00052876,120]
[357546731,1744135863521,-500.0,0.00052876,120]
[357546732,1744135863530,-6308.816401,0.00052876,120]
[357546733,1744135863540,-6308.816401,0.00052876,120]
[357546734,1744135863550,-500.0,0.00052876,120]
[357546735,1744135863560,-500.0,0.00052876,120]
[357546736,1744135863570,-6308.816401,0.00052876,120]
[357546737,1744135863579,-6308.816393,0.00052876,120]
[357546738,1744135863589,-180.004315,0.00052876,120]
[357546739,1744135863599,-500.0,0.00052876,120]
[357546740,1744135863609,-943.92,0.00052876,120]
[357546741,1744135863622,-180.004315,0.00052876,120]
[357546742,1744135863632,-500.0,0.00052876,120]
[357546743,1744135863641,-2817.37,0.00052876,120]
[357546744,1744135863651,-643.01,0.00052876,120]
[357546745,1744135863662,-500.0,0.00052876,60]
[357546746,1744135863672,-180.004315,0.00052876,120]
[357546747,1744135863681,-500.0,0.00052876,120]
[357546748,1744135863693,-2095.08,0.00052876,120]
[357546749,1744135863703,-180.004309,0.00052876,120]
[357546750,1744135863713,-500.0,0.00052876,120]
[357546751,1744135863723,-535.91,0.00052876,120]
[357546752,1744135863732,-500.0,0.00052876,120]
[357546753,1744135863742,-500.0,0.00052876,120]
[357546754,1744135863751,-500.0,0.00052876,120]
[357546755,1744135863761,-500.0,0.00052876,120]
[357546756,1744135863771,-1220.84,0.00052876,2]
[357546757,1744135863781,-192.81634801,0.00052876,120]
[357546758,1744135863792,-500.0,0.00052876,120]
[357546759,1744135863801,-500.0,0.00052876,120]
[357546760,1744135863811,-2064.77,0.00052876,120]
[357546761,1744135863821,-500.0,0.00052876,120]
[357546762,1744135863831,-500.0,0.00052876,120]
[357546763,1744135863841,-500.0,0.00052876,120]
[357546764,1744135863850,-1736.05,0.00052876,120]
[357546765,1744135863860,-777.99,0.00052876,120]
[357546766,1744135863869,-500.0,0.00052876,120]
[357546767,1744135863879,-500.0,0.00052876,120]
[357546768,1744135863889,-500.0,0.00052876,120]
[357546769,1744135863899,-520.37899759,0.00052876,120]
[357546770,1744135863909,-2563.65,0.00052876,120]
[357546771,1744135863918,-500.0,0.00052876,120]
[357546772,1744135863928,-321.59656173,0.00052876,120]
[357546773,1744135863937,-500.0,0.00052876,120]
[357546774,1744135863947,-573.8247113,0.00052876,120]
[357546775,1744135863956,-1027.58,0.00052876,120]
[357546776,1744135863965,-751.14,0.00052876,120]
[357546777,1744135863975,-1287.88,0.00052876,120]
[357546778,1744135863984,-646.32,0.00052876,120]
[357546779,1744135863994,-500.0,0.00052876,120]
[357546780,1744135864004,-262.54165383,0.00052876,120]
[357546781,1744135864015,-500.0,0.00052876,120]
[357546782,1744135864024,-509.41,0.00052876,120]
[357546783,1744135864033,-500.0,0.00052876,120]
[357546784,1744135864043,-500.0,0.00052876,120]
[357546785,1744135864052,-500.0,0.00052876,120]
[357546786,1744135864061,-500.0,0.00052876,120]
[357546787,1744135864072,-575.39,0.00052876,120]
[357546788,1744135864081,-2129.03,0.00052876,120]
[357546789,1744135864091,-1105.86,0.00052876,120]
[357546790,1744135864101,-500.0,0.00052876,120]
[357546791,1744135864115,-500.0,0.00052876,120]
[357546792,1744135864125,-1398.27,0.00052876,120]
[357546793,1744135864135,-500.0,0.00052876,120]
[357546794,1744135864144,-500.0,0.00052876,120]
[357546795,1744135864154,-500.0,0.00052876,120]
[357546796,1744135864164,-500.0,0.00052876,120]
[357546797,1744135864174,-500.0,0.00052876,120]
[357546798,1744135864184,-813.0,0.00052876,120]
[357546799,1744135864194,-220.45863696,0.00052876,120]
[357546800,1744135864203,-514.52393033,0.00052876,120]
[357546801,1744135864213,-500.0,0.00052876,120]
[357546802,1744135864223,-500.0,0.00052876,120]
[357546803,1744135864234,-1231.16,0.00052876,120]
[357546804,1744135864244,-1852.62,0.00052876,120]
[357546805,1744135864254,-2129.78,0.00052876,120]
[357546806,1744135864270,-500.0,0.00052876,120]
[357546807,1744135864281,-500.0,0.00052876,120]
[357546808,1744135864291,-500.0,0.00052876,120]
[357546809,1744135864302,-500.0,0.00052876,120]
[357546810,1744135864312,-735.03,0.00052876,120]
[357546811,1744135864323,-817.54,0.00052876,120]
[357546812,1744135864334,-500.0,0.00052876,120]
[357546813,1744135864345,-500.0,0.00052876,120]
[357546814,1744135864355,-500.0,0.00052876,120]
[357546815,1744135864365,-538.82,0.00052876,120]
[357546816,1744135864376,-500.0,0.00052876,120]
[357546817,1744135864388,-589.43,0.00052876,120]
[357546818,1744135864398,-794.86,0.00052876,120]
[357546819,1744135864409,-500.0,0.00052876,120]
[357546820,1744135864419,-500.0,0.00052876,120]
[357546821,1744135864430,-500.0,0.00052876,120]
[357546822,1744135864439,-1762.5,0.00052876,120]
[357546823,1744135864448,-703.81,0.00052876,120]
[357546824,1744135864458,-500.0,0.00052876,120]
[357546825,1744135864467,-1383.32,0.00052876,120]
[357546826,1744135864477,-500.0,0.00052876,2]
[357546827,1744135864487,-500.0,0.00052876,120]
[357546828,1744135864497,-734.05,0.00052876,120]
[357546829,1744135864506,-900.0,0.000529,19]
[357546830,1744135864520,-1234.0,0.00052929,60]
[357546831,1744135864530,-1560.0,0.00052929,60]
[357546832,1744135864541,-1234.0,0.00052984,60]
[357546833,1744135864551,-1560.0,0.00052984,60]
[357546834,1744135864780,-500.0,0.00053,120]
[357546835,1744135864791,-500.0,0.00053,10]
[357546836,1744135864801,-1234.0,0.00053038,60]
[357546837,1744135864812,-1560.0,0.00053038,60]
[357546838,1744135864822,-1538.97745194,0.00053053,15]
[357546839,1744135864831,-1234.0,0.00053093,60]
[357546840,1744135864841,-1560.0,0.00053093,60]
[357546841,1744135864851,-150.0,0.00053141,120]
[357546842,1744135864861,-1234.0,0.00053148,60]
[357546843,1744135864870,-1560.0,0.00053148,60]
[357546844,1744135864880,-1234.0,0.00053203,60]
[357546845,1744135864890,-1560.0,0.00053203,60]
[357546846,1744135864900,-1234.0,0.00053258,60]
[357546847,1744135864909,-1560.0,0.00053258,60]
[357546848,1744135864919,-202.0,0.0005327,30]
[357546849,1744135864928,-1234.0,0.00053312,60]
[357546850,1744135864937,-1560.0,0.00053312,60]
[357546851,1744135864947,-823.089422,0.00053317,15]
[357546852,1744135864956,-1234.0,0.00053367,60]
[357546853,1744135864966,-1560.0,0.00053367,60]
[357546854,1744135864975,-500.0,0.00053404,5]
[357546855,1744135864984,-500.0,0.00053404,5]
[357546856,1744135864994,-500.0,0.00053404,5]
[357546857,1744135865004,-500.0,0.00053404,5]
[357546858,1744135865017,-1234.0,0.00053422,60]
[357546859,1744135865026,-1560.0,0.00053422,60]
[357546860,1744135865036,-1234.0,0.00053477,60]
[357546861,1744135865046,-1560.0,0.00053477,60]
[357546862,1744135865055,-1538.97745194,0.00053491,15]
[357546863,1744135865065,-150.0,0.00053494,120]
[357546864,1744135865074,-279.18996,0.000535,120]
[357546865,1744135865084,-151.0,0.000535,120]
[357546866,1744135865093,-151.0,0.000535,120]
[357546867,1744135865102,-150.0,0.00053523,120]
[357546868,1744135865112,-1234.0,0.00053532,60]
[357546869,1744135865121,-1560.0,0.00053532,60]
[357546870,1744135865131,-1234.0,0.00053586,60]
[357546871,1744135865140,-1560.0,0.00053586,60]
[357546872,1744135865150,-1244.28717037,0.00053641,60]
[357546873,1744135865159,-1567.0,0.00053641,60]
[357546874,1744135865169,-180.75880015,0.00053673,10]
[357546875,1744135865179,-500.0,0.00053687,120]
[357546876,1744135865188,-151.0,0.00053688,120]
[357546877,1744135865197,-298.704211,0.00053688,120]
[357546878,1744135865207,-500.0,0.00053697,2]
[357546879,1744135865217,-1603.99,0.00053697,120]
[357546880,1744135865227,-221.13703939,0.00053697,120]
[357546881,1744135865237,-150.0,0.00053697,3]
[357546882,1744135865246,-500.0,0.00053697,120]
[357546883,1744135865255,-582.81747308,0.00053698,120]
[357546884,1744135865270,-545.03,0.00053698,120]
[357546885,1744135865279,-500.0,0.00053698,120]
[357546886,1744135865288,-500.0,0.00053698,120]
[357546887,1744135865298,-500.0,0.00053698,120]
[357546888,1744135865307,-500.0,0.00053698,120]
[357546889,1744135865316,-155.17416795,0.00053698,120]
[357546890,1744135865326,-538.21,0.00053698,120]
[357546891,1744135865336,-500.0,0.00053698,120]
[357546892,1744135865345,-500.0,0.00053698,120]
[357546893,1744135865355,-500.0,0.00053698,120]
[357546894,1744135865364,-500.0,0.00053698,120]
[357546895,1744135865373,-500.0,0.00053698,120]
[357546896,1744135865383,-500.0,0.00053698,120]
[357546897,1744135865392,-500.0,0.00053698,120]
[357546898,1744135865402,-500.0,0.00053698,120]
[357546899,1744135865412,-500.0,0.00053698,120]
[357546900,1744135865421,-500.0,0.00053698,120]
[357546901,1744135865431,-500.0,0.00053698,120]
[357546902,1744135865440,-500.0,0.00053698,120]
[357546903,1744135865449,-686.22,0.00053698,120]
[357546904,1744135865459,-535.80557389,0.00053698,120]
[357546905,1744135865468,-589.26,0.00053698,120]
[357546906,1744135865478,-500.0,0.00053698,120]
[357546907,1744135865487,-500.0,0.00053698,120]
[357546908,1744135865497,-500.0,0.00053698,120]
[357546909,1744135865507,-500.0,0.00053698,120]
[357546910,1744135865521,-500.0,0.00053698,120]
[357546911,1744135865531,-500.0,0.00053698,120]
[357546912,1744135865541,-500.0,0.00053698,120]
[357546913,1744135865550,-500.0,0.00053698,120]
[357546914,1744135865560,-500.0,0.00053698,120]
[357546915,1744135865569,-500.0,0.00053698,120]
[357546916,1744135865579,-531.84,0.00053698,120]
[357546917,1744135865588,-500.0,0.00053698,120]
[357546918,1744135865598,-500.0,0.00053698,120]
[357546919,1744135865607,-500.0,0.00053698,120]
[357546920,1744135865619,-500.0,0.00053698,120]
[357546921,1744135865629,-1392.68,0.00053698,120]
[357546922,1744135865638,-1013.5,0.00053698,120]
[357546923,1744135865647,-500.0,0.00053698,120]
[357546924,1744135865658,-500.0,0.00053698,120]
[357546925,1744135865667,-500.0,0.00053698,120]
[357546926,1744135865677,-500.0,0.00053698,120]
[357546927,1744135865686,-340.74942835,0.00053698,120]
[357546928,1744135865697,-500.0,0.00053698,120]
[357546929,1744135865707,-322.42146412,0.00053698,120]
[357546930,1744135865717,-502.78,0.00053698,120]
[357546931,1744135865726,-500.0,0.00053698,120]
[357546932,1744135865736,-500.0,0.00053698,120]
[357546933,1744135865745,-500.0,0.00053698,120]
[357546934,1744135865755,-500.0,0.00053698,120]
[357546935,1744135865766,-500.0,0.00053698,120]
[357546936,1744135865776,-500.0,0.00053698,120]
[357546937,1744135865785,-500.0,0.00053698,120]
[357546938,1744135865796,-500.0,0.00053698,120]
[357546939,1744135865806,-500.0,0.00053698,120]
[357546940,1744135865815,-1285.07,0.00053698,10]
[357546941,1744135865825,-500.0,0.00053698,120]
[357546942,1744135865835,-500.0,0.00053698,120]
[357546943,1744135865844,-729.33,0.00053698,30]
[357546944,1744135865854,-500.0,0.00053698,120]
[357546945,1744135865863,-500.0,0.00053698,120]
[357546946,1744135865872,-583.31,0.00053698,120]
[357546947,1744135865882,-500.0,0.00053698,120]
[357546948,1744135865892,-409.24946843,0.00053698,120]
[357546949,1744135865901,-1155.37,0.00053698,120]
[357546950,1744135865911,-500.0,0.00053698,120]
[357546951,1744135865920,-651.5,0.00053698,120]
[357546952,1744135865930,-500.0,0.00053698,120]
[357546953,1744135865939,-500.0,0.00053698,120]
[357546954,1744135865948,-500.0,0.00053698,120]
[357546955,1744135865958,-500.0,0.00053698,120]
[357546956,1744135865968,-500.0,0.00053698,120]
[357546957,1744135865978,-500.0,0.00053698,120]
[357546958,1744135865987,-500.0,0.00053698,120]
[357546959,1744135865998,-500.0,0.00053698,120]
[357546960,1744135866007,-986.5,0.00053698,120]
[357546961,1744135866019,-829.06,0.00053698,120]
[357546962,1744135866028,-500.0,0.00053698,120]
[357546963,1744135866038,-500.0,0.00053698,120]
[357546964,1744135866048,-500.0,0.00053698,120]
[357546965,1744135866057,-500.0,0.00053698,120]
[357546966,1744135866067,-500.0,0.00053698,120]
[357546967,1744135866076,-500.0,0.00053698,120]
[357546968,1744135866086,-500.0,0.00053698,120]
[357546969,1744135866096,-853.97,0.00053698,120]
[357546970,1744135866105,-285.86909537,0.00053698,120]
[357546971,1744135866115,-500.0,0.00053698,120]
[357546972,1744135866125,-2000.0,0.00053698,2]
[357546973,1744135866134,-500.0,0.00053698,120]
[357546974,1744135866145,-839.17,0.00053698,120]